[Event "*** Titled Tuesday Blitz"]
[Site "Chess.com"]
[Date "2020.05.26"]
[Round "6"]
[White "MathiasWomacka"]
[Black "Shankovskyi"]
[Result "1-0"]
[WhiteElo "2397"]
[BlackElo "2525"]
[TimeControl "180+1"]
[EndTime "11:08:59 PDT"]
[Termination "MathiasWomacka won by resignation"]

1. e4 {[%clk 0:03:00.9]} 1... e5 {[%clk 0:02:59.8]} 2. Nf3 {[%clk 0:03:00.6]}
2... Nc6 {[%clk 0:03:00.3]} 3. Bb5 {[%clk 0:02:59.8]} 3... a6 {[%clk 0:03:00.4]}
4. Bxc6 {[%clk 0:03:00]} 4... dxc6 {[%clk 0:03:00.1]} 5. O-O {[%clk 0:03:00.6]}
5... Bd6 {[%clk 0:02:46.5]} 6. d4 {[%clk 0:02:59.5]} 6... f6 {[%clk 0:02:39.1]}
7. dxe5 {[%clk 0:02:58.2]} 7... fxe5 {[%clk 0:02:38.4]} 8. Nxe5 {[%clk
0:02:58.2]} 8... Nf6 {[%clk 0:02:27.5]} 9. Nf3 {[%clk 0:02:50.1]} 9... Be7
{[%clk 0:02:08.7]} 10. Qxd8+ {[%clk 0:02:46.9]} 10... Bxd8 {[%clk 0:02:09.6]}
11. Nc3 {[%clk 0:02:46.9]} 11... h6 {[%clk 0:02:07]} 12. Bf4 {[%clk 0:02:42.5]}
12... Bg4 {[%clk 0:02:06.7]} 13. Ne5 {[%clk 0:02:29.3]} 13... Bh5 {[%clk
0:02:02.2]} 14. f3 {[%clk 0:02:15.8]} 14... Nd7 {[%clk 0:01:51.5]} 15. Rad1
{[%clk 0:02:06.6]} 15... Nc5 {[%clk 0:01:31.2]} 16. Nd3 {[%clk 0:01:50.3]} 16...
Ne6 {[%clk 0:01:27]} 17. Bg3 {[%clk 0:01:50]} 17... Bf6 {[%clk 0:01:26.1]} 18.
Be5 {[%clk 0:01:49.7]} 18... Be7 {[%clk 0:01:20.8]} 19. g4 {[%clk 0:01:38.4]}
19... Bf7 {[%clk 0:01:16.6]} 20. f4 {[%clk 0:01:38.1]} 20... O-O {[%clk
0:01:15.6]} 21. f5 {[%clk 0:01:37]} 21... Ng5 {[%clk 0:01:10.2]} 22. Bxc7 {[%clk
0:01:32.5]} 22... Rac8 {[%clk 0:01:03.2]} 23. Bg3 {[%clk 0:01:24.9]} 23... Bc4
{[%clk 0:00:47.1]} 24. h4 {[%clk 0:01:10.8]} 24... Nh7 {[%clk 0:00:46.8]} 25. e5
{[%clk 0:01:10.8]} 25... b5 {[%clk 0:00:42.2]} 26. Rfe1 {[%clk 0:01:03.7]} 26...
b4 {[%clk 0:00:40.3]} 27. Ne4 {[%clk 0:01:03.6]} 27... Bd5 {[%clk 0:00:25.8]}
28. Nf4 {[%clk 0:00:58.4]} 28... Rfd8 {[%clk 0:00:20.2]} 29. Ng6 {[%clk
0:00:46.6]} 29... Bf8 {[%clk 0:00:14.2]} 30. Nxf8 {[%clk 0:00:43.5]} 30... Nxf8
{[%clk 0:00:15.1]} 31. Nd6 {[%clk 0:00:43.5]} 31... Rc7 {[%clk 0:00:13.1]} 32.
e6 {[%clk 0:00:39.2]} 32... Re7 {[%clk 0:00:12.6]} 33. g5 {[%clk 0:00:30.5]}
33... hxg5 {[%clk 0:00:10.7]} 34. hxg5 {[%clk 0:00:31.4]} 34... Nxe6 {[%clk
0:00:09.9]} 35. fxe6 {[%clk 0:00:29.1]} 35... Rxe6 {[%clk 0:00:10.8]} 36. Rxe6
{[%clk 0:00:27.1]} 36... Bxe6 {[%clk 0:00:11.7]} 37. Re1 {[%clk 0:00:23.9]}
37... Bd5 {[%clk 0:00:07.4]} 38. Re7 {[%clk 0:00:22.5]} 38... Kh7 {[%clk
0:00:06.5]} 39. Be5 {[%clk 0:00:21.3]} 39... Kg6 {[%clk 0:00:07]} 40. Rxg7+
{[%clk 0:00:20.8]} 40... Kh5 {[%clk 0:00:07.4]} 41. Kf2 {[%clk 0:00:19.5]} 41...
Kg4 {[%clk 0:00:07.1]} 42. Ke3 {[%clk 0:00:19.3]} 42... c5 {[%clk 0:00:07]} 43.
g6 {[%clk 0:00:18.1]} 43... a5 {[%clk 0:00:04.7]} 44. Ra7 {[%clk 0:00:17.1]}
44... Kg5 {[%clk 0:00:03.3]} 45. g7 {[%clk 0:00:17.3]} 45... Bxa2 {[%clk
0:00:03]} 46. Rxa5 {[%clk 0:00:16.4]} 46... Bb1 {[%clk 0:00:03.4]} 47. Rxc5
{[%clk 0:00:16.3]} 47... Kg6 {[%clk 0:00:04]} 48. Kd4 {[%clk 0:00:15.3]} 48...
b3 {[%clk 0:00:03.4]} 49. cxb3 {[%clk 0:00:14.3]} 49... Ba2 {[%clk 0:00:03.3]}
50. b4 {[%clk 0:00:14.2]} 50... Be6 {[%clk 0:00:02.9]} 51. b5 {[%clk 0:00:14.1]}
51... Rb8 {[%clk 0:00:03.3]} 52. Rc6 {[%clk 0:00:11.5]} 52... Kh7 {[%clk
0:00:03.8]} 53. Kc5 {[%clk 0:00:11.2]} 53... Bd7 {[%clk 0:00:04.1]} 54. Rc7
{[%clk 0:00:10.8]} 54... Bxb5 {[%clk 0:00:03.9]} 55. Nxb5 {[%clk 0:00:10.3]}
55... Re8 {[%clk 0:00:04.8]} 56. Bc3 {[%clk 0:00:09.3]} 56... Re4 {[%clk
0:00:04.7]} 57. Rc8 {[%clk 0:00:08.6]} 57... Rg4 {[%clk 0:00:04.7]} 58. Rh8+
{[%clk 0:00:08.3]} 58... Kg6 {[%clk 0:00:04.6]} 59. g8=Q+ {[%clk 0:00:09.2]}
59... Kf5 {[%clk 0:00:05.5]} 60. Rh5+ {[%clk 0:00:09.1]} 1-0

[Event "*** Titled Tuesday Blitz"]
[Site "Chess.com"]
[Date "2020.05.26"]
[Round "6"]
[White "Gareth-Bale11"]
[Black "Oleksandr_Bortnyk"]
[Result "0-1"]
[WhiteElo "2761"]
[BlackElo "2987"]
[TimeControl "180+1"]
[EndTime "11:09:02 PDT"]
[Termination "Oleksandr_Bortnyk won by checkmate"]

1. d4 {[%clk 0:02:59.1]} 1... d6 {[%clk 0:02:56.6]} 2. Nf3 {[%clk 0:02:57.4]}
2... Nf6 {[%clk 0:02:56.7]} 3. c4 {[%clk 0:02:56.9]} 3... g6 {[%clk 0:02:56.9]}
4. Nc3 {[%clk 0:02:55.8]} 4... Bf5 {[%clk 0:02:57]} 5. Qb3 {[%clk 0:02:40]} 5...
Qc8 {[%clk 0:02:55.3]} 6. g3 {[%clk 0:02:33.1]} 6... Bg7 {[%clk 0:02:41.7]} 7.
Bg2 {[%clk 0:02:18.1]} 7... Nc6 {[%clk 0:02:34.8]} 8. d5 {[%clk 0:02:15.7]} 8...
Nd8 {[%clk 0:02:33.5]} 9. O-O {[%clk 0:02:08]} 9... O-O {[%clk 0:02:31]} 10. Re1
{[%clk 0:01:47.6]} 10... Ne4 {[%clk 0:02:27.3]} 11. Nxe4 {[%clk 0:01:31.5]}
11... Bxe4 {[%clk 0:02:28.2]} 12. Bd2 {[%clk 0:01:29.3]} 12... e5 {[%clk
0:01:51.3]} 13. Qe3 {[%clk 0:01:11.3]} 13... f5 {[%clk 0:01:46.6]} 14. c5 {[%clk
0:00:55]} 14... Bxd5 {[%clk 0:01:42.3]} 15. cxd6 {[%clk 0:00:54.7]} 15... cxd6
{[%clk 0:01:43]} 16. Qd3 {[%clk 0:00:46.4]} 16... Bxf3 {[%clk 0:01:05.6]} 17.
exf3 {[%clk 0:00:42.9]} 17... Qe6 {[%clk 0:01:00.1]} 18. Bb4 {[%clk 0:00:36.5]}
18... Nf7 {[%clk 0:00:58.2]} 19. Rad1 {[%clk 0:00:35.5]} 19... Rfd8 {[%clk
0:00:57.4]} 20. Qd5 {[%clk 0:00:22.3]} 20... Qxd5 {[%clk 0:00:56.5]} 21. Rxd5
{[%clk 0:00:23.2]} 21... Rac8 {[%clk 0:00:55.9]} 22. Red1 {[%clk 0:00:22.4]}
22... Bf8 {[%clk 0:00:46.2]} 23. Bf1 {[%clk 0:00:20.5]} 23... Rc2 {[%clk
0:00:43.9]} 24. Bc3 {[%clk 0:00:19.6]} 24... Rc8 {[%clk 0:00:31]} 25. Bb5 {[%clk
0:00:16.2]} 25... Ng5 {[%clk 0:00:18.4]} 26. Kg2 {[%clk 0:00:16.3]} 26... e4
{[%clk 0:00:14.8]} 27. f4 {[%clk 0:00:16.3]} 27... Nf7 {[%clk 0:00:05.3]} 28.
Ba4 {[%clk 0:00:15.4]} 28... R8xc3 {[%clk 0:00:04.5]} 29. bxc3 {[%clk
0:00:16.3]} 29... Rxc3 {[%clk 0:00:05.4]} 30. Bb3 {[%clk 0:00:16.4]} 30... Kg7
{[%clk 0:00:04.3]} 31. h3 {[%clk 0:00:15.9]} 31... a6 {[%clk 0:00:03.8]} 32. g4
{[%clk 0:00:13.9]} 32... Nh6 {[%clk 0:00:02.3]} 33. g5 {[%clk 0:00:14.3]} 33...
Nf7 {[%clk 0:00:02.7]} 34. R5d2 {[%clk 0:00:13.9]} 34... Nd8 {[%clk 0:00:02.9]}
35. Bd5 {[%clk 0:00:13.5]} 35... b5 {[%clk 0:00:02.5]} 36. Rb1 {[%clk
0:00:13.4]} 36... Rf3 {[%clk 0:00:02.4]} 37. a4 {[%clk 0:00:13]} 37... Rxf4
{[%clk 0:00:02.4]} 38. axb5 {[%clk 0:00:12.9]} 38... axb5 {[%clk 0:00:03.3]} 39.
Rxb5 {[%clk 0:00:13.1]} 39... Be7 {[%clk 0:00:03.9]} 40. Rb8 {[%clk 0:00:10.8]}
40... Bxg5 {[%clk 0:00:03.9]} 41. Rc2 {[%clk 0:00:11.2]} 41... Bh4 {[%clk
0:00:03]} 42. Rc7+ {[%clk 0:00:10.7]} 42... Kh6 {[%clk 0:00:03.1]} 43. Rc2
{[%clk 0:00:10.7]} 43... Rf3 {[%clk 0:00:01.9]} 44. Rbc8 {[%clk 0:00:10.3]}
44... Rd3 {[%clk 0:00:02.2]} 45. Bg8 {[%clk 0:00:09.5]} 45... f4 {[%clk
0:00:01.6]} 46. R2c7 {[%clk 0:00:08.3]} 46... f3+ {[%clk 0:00:01.9]} 47. Kh2
{[%clk 0:00:08.7]} 47... Bxf2 {[%clk 0:00:02.1]} 48. Rxh7+ {[%clk 0:00:08.4]}
48... Kg5 {[%clk 0:00:02.7]} 49. Rxd8 {[%clk 0:00:08.6]} 49... Rd2 {[%clk
0:00:03.3]} 50. h4+ {[%clk 0:00:08.8]} 50... Bxh4+ {[%clk 0:00:03.7]} 51. Kh3
{[%clk 0:00:09.3]} 51... Bf2 {[%clk 0:00:03.3]} 52. Rf8 {[%clk 0:00:09.3]} 52...
Bg1 {[%clk 0:00:03.2]} 53. Rhf7 {[%clk 0:00:07]} 53... Rh2+ {[%clk 0:00:02.8]}
54. Kg3 {[%clk 0:00:07.4]} 54... Rg2+ {[%clk 0:00:03.7]} 55. Kh3 {[%clk
0:00:07.8]} 55... d5 {[%clk 0:00:04.6]} 56. Rf6 {[%clk 0:00:07.1]} 56... Rh2+
{[%clk 0:00:04.7]} 57. Kg3 {[%clk 0:00:07]} 57... Rg2+ {[%clk 0:00:05.6]} 58.
Kh3 {[%clk 0:00:07.6]} 58... Be3 {[%clk 0:00:05]} 59. Bh7 {[%clk 0:00:07.3]}
59... Kh5 {[%clk 0:00:04.8]} 60. Rh8 {[%clk 0:00:05.3]} 60... Rg1 {[%clk
0:00:04.2]} 61. Bg8+ {[%clk 0:00:05.1]} 61... Kg5 {[%clk 0:00:04.5]} 62. Rd6
{[%clk 0:00:05.6]} 62... Bf4 {[%clk 0:00:04.1]} 63. Rxd5+ {[%clk 0:00:05.2]}
63... Kf6 {[%clk 0:00:04.7]} 64. Rd7 {[%clk 0:00:05.1]} 64... f2 {[%clk
0:00:04.2]} 65. Rf7+ {[%clk 0:00:04.6]} 65... Kg5 {[%clk 0:00:04.5]} 66. Bh7
{[%clk 0:00:03.4]} 66... f1=Q# {[%clk 0:00:04.1]} 0-1

[Event "*** Titled Tuesday Blitz"]
[Site "Chess.com"]
[Date "2020.05.26"]
[Round "6"]
[White "Pavalamalli"]
[Black "chess94cu"]
[Result "1/2-1/2"]
[WhiteElo "2290"]
[BlackElo "2455"]
[TimeControl "180+1"]
[EndTime "11:09:05 PDT"]
[Termination "Game drawn - insufficient material"]

1. e4 {[%clk 0:02:58.6]} 1... e5 {[%clk 0:02:59.2]} 2. Nf3 {[%clk 0:02:58.1]}
2... Nc6 {[%clk 0:02:59.8]} 3. Nc3 {[%clk 0:02:57.6]} 3... Nf6 {[%clk
0:02:58.6]} 4. Bb5 {[%clk 0:02:57.5]} 4... Bd6 {[%clk 0:02:58.4]} 5. d3 {[%clk
0:02:57.3]} 5... h6 {[%clk 0:02:57.2]} 6. a3 {[%clk 0:02:56.9]} 6... a6 {[%clk
0:02:56]} 7. Ba4 {[%clk 0:02:55.6]} 7... b5 {[%clk 0:02:51]} 8. Bb3 {[%clk
0:02:55.5]} 8... Be7 {[%clk 0:02:51.6]} 9. Be3 {[%clk 0:02:48.2]} 9... d6 {[%clk
0:02:50.9]} 10. Nd5 {[%clk 0:02:30.4]} 10... Be6 {[%clk 0:02:49]} 11. Nxe7
{[%clk 0:02:15.2]} 11... Qxe7 {[%clk 0:02:47.6]} 12. Bxe6 {[%clk 0:02:08.1]}
12... Qxe6 {[%clk 0:02:46.2]} 13. O-O {[%clk 0:02:05.1]} 13... O-O {[%clk
0:02:44.8]} 14. Nh4 {[%clk 0:02:04.1]} 14... d5 {[%clk 0:02:42.8]} 15. Qf3
{[%clk 0:01:50.9]} 15... dxe4 {[%clk 0:02:40.8]} 16. dxe4 {[%clk 0:01:49.5]}
16... Qg4 {[%clk 0:01:47.1]} 17. Qxg4 {[%clk 0:01:38.7]} 17... Nxg4 {[%clk
0:01:48]} 18. Bc5 {[%clk 0:01:37.7]} 18... Rfd8 {[%clk 0:01:47]} 19. Rad1 {[%clk
0:01:29.6]} 19... g6 {[%clk 0:01:36.3]} 20. f3 {[%clk 0:00:58.9]} 20... Nf6
{[%clk 0:01:34.6]} 21. c3 {[%clk 0:00:56.3]} 21... Kg7 {[%clk 0:01:29.2]} 22. g3
{[%clk 0:00:51.8]} 22... Nd7 {[%clk 0:01:28.8]} 23. Bf2 {[%clk 0:00:46.1]} 23...
Nf8 {[%clk 0:01:27.9]} 24. Ng2 {[%clk 0:00:44.7]} 24... Ne6 {[%clk 0:01:22.8]}
25. Ne3 {[%clk 0:00:44.7]} 25... Ne7 {[%clk 0:01:15.9]} 26. Nd5 {[%clk
0:00:39.9]} 26... Kf8 {[%clk 0:01:10.9]} 27. Be3 {[%clk 0:00:32]} 27... g5
{[%clk 0:01:10.2]} 28. f4 {[%clk 0:00:20.3]} 28... exf4 {[%clk 0:01:06.7]} 29.
gxf4 {[%clk 0:00:20.1]} 29... Nxd5 {[%clk 0:00:26.3]} 30. exd5 {[%clk 0:00:20]}
30... Nxf4 {[%clk 0:00:26.2]} 31. Bxf4 {[%clk 0:00:20.3]} 31... gxf4 {[%clk
0:00:26.9]} 32. Rxf4 {[%clk 0:00:20.5]} 32... Rd7 {[%clk 0:00:25.5]} 33. Rdf1
{[%clk 0:00:19.2]} 33... Re8 {[%clk 0:00:24]} 34. Rf6 {[%clk 0:00:19]} 34... Re5
{[%clk 0:00:22.8]} 35. Rxh6 {[%clk 0:00:18.1]} 35... Rexd5 {[%clk 0:00:21.6]}
36. Rhf6 {[%clk 0:00:14.2]} 36... Kg7 {[%clk 0:00:20.3]} 37. R6f2 {[%clk
0:00:12.9]} 37... Rg5+ {[%clk 0:00:19.4]} 38. Rg2 {[%clk 0:00:11.6]} 38... Kg6
{[%clk 0:00:15.4]} 39. Rxg5+ {[%clk 0:00:11.2]} 39... Kxg5 {[%clk 0:00:16.3]}
40. Kg2 {[%clk 0:00:11.3]} 40... f5 {[%clk 0:00:16.4]} 41. Rf2 {[%clk
0:00:11.1]} 41... f4 {[%clk 0:00:15.4]} 42. Re2 {[%clk 0:00:09.6]} 42... Rd3
{[%clk 0:00:13.1]} 43. Kf2 {[%clk 0:00:09.2]} 43... Kf5 {[%clk 0:00:13.1]} 44.
Re8 {[%clk 0:00:08.1]} 44... Rd2+ {[%clk 0:00:12.4]} 45. Re2 {[%clk 0:00:07.8]}
45... Rd3 {[%clk 0:00:12.4]} 46. Re8 {[%clk 0:00:07.9]} 46... c5 {[%clk
0:00:08.5]} 47. Rf8+ {[%clk 0:00:07.7]} 47... Ke4 {[%clk 0:00:07.4]} 48. Re8+
{[%clk 0:00:07.9]} 48... Kf5 {[%clk 0:00:07.5]} 49. Rf8+ {[%clk 0:00:08.1]}
49... Kg4 {[%clk 0:00:07]} 50. Rg8+ {[%clk 0:00:08.2]} 50... Kh5 {[%clk
0:00:07.6]} 51. Rh8+ {[%clk 0:00:08.3]} 51... Kg6 {[%clk 0:00:07.7]} 52. Rg8+
{[%clk 0:00:08.1]} 52... Kf7 {[%clk 0:00:07.1]} 53. Ra8 {[%clk 0:00:07.1]} 53...
Rd2+ {[%clk 0:00:07.3]} 54. Kf3 {[%clk 0:00:07.5]} 54... Rxh2 {[%clk 0:00:07.3]}
55. Rxa6 {[%clk 0:00:06.8]} 55... Rxb2 {[%clk 0:00:07.8]} 56. Kxf4 {[%clk
0:00:06.4]} 56... Rb3 {[%clk 0:00:08.2]} 57. Rb6 {[%clk 0:00:06.4]} 57... c4
{[%clk 0:00:05.9]} 58. Ke4 {[%clk 0:00:04.3]} 58... Rxc3 {[%clk 0:00:04.5]} 59.
Rxb5 {[%clk 0:00:03.9]} 59... Rxa3 {[%clk 0:00:05.4]} 60. Rc5 {[%clk 0:00:03.9]}
60... c3 {[%clk 0:00:05.1]} 61. Kd3 {[%clk 0:00:04]} 61... Ke6 {[%clk
0:00:05.7]} 62. Rxc3 {[%clk 0:00:03.5]} 62... Rxc3+ {[%clk 0:00:05.9]} 63. Kxc3
{[%clk 0:00:03.9]} 1/2-1/2

[Event "*** Titled Tuesday Blitz"]
[Site "Chess.com"]
[Date "2020.05.26"]
[Round "6"]
[White "KerryStead"]
[Black "Parkas"]
[Result "0-1"]
[WhiteElo "2113"]
[BlackElo "2287"]
[TimeControl "180+1"]
[EndTime "11:09:10 PDT"]
[Termination "Parkas won by checkmate"]

1. d4 {[%clk 0:02:38.1]} 1... g6 {[%clk 0:02:58.4]} 2. e4 {[%clk 0:02:37.7]}
2... Bg7 {[%clk 0:02:58.9]} 3. Be3 {[%clk 0:02:37.9]} 3... d6 {[%clk 0:02:58.2]}
4. f3 {[%clk 0:02:37.6]} 4... e5 {[%clk 0:02:53.5]} 5. d5 {[%clk 0:02:36.5]}
5... f5 {[%clk 0:02:52.1]} 6. Qd2 {[%clk 0:02:33.3]} 6... Nf6 {[%clk 0:02:38.7]}
7. Bd3 {[%clk 0:02:31.7]} 7... c6 {[%clk 0:02:21.8]} 8. c4 {[%clk 0:02:31]} 8...
cxd5 {[%clk 0:02:21.3]} 9. cxd5 {[%clk 0:02:29.5]} 9... Nbd7 {[%clk 0:02:04.7]}
10. Nc3 {[%clk 0:02:26.9]} 10... Nc5 {[%clk 0:01:59]} 11. Bc2 {[%clk 0:02:23.1]}
11... a5 {[%clk 0:01:52.8]} 12. Nge2 {[%clk 0:02:20.1]} 12... O-O {[%clk
0:01:50]} 13. O-O {[%clk 0:02:18]} 13... b6 {[%clk 0:01:46.5]} 14. a3 {[%clk
0:02:15.7]} 14... f4 {[%clk 0:01:42.3]} 15. Bf2 {[%clk 0:02:14.1]} 15... a4
{[%clk 0:01:40]} 16. Nb5 {[%clk 0:02:08.9]} 16... Ba6 {[%clk 0:01:34.1]} 17.
Nec3 {[%clk 0:02:06.2]} 17... g5 {[%clk 0:01:27.6]} 18. Rfd1 {[%clk 0:02:04.4]}
18... h5 {[%clk 0:01:19.5]} 19. Rab1 {[%clk 0:02:01.6]} 19... g4 {[%clk
0:01:06.9]} 20. fxg4 {[%clk 0:02:00.7]} 20... hxg4 {[%clk 0:01:03.5]} 21. Qe1
{[%clk 0:01:57]} 21... Kf7 {[%clk 0:00:58.9]} 22. b4 {[%clk 0:01:55.7]} 22...
axb3 {[%clk 0:00:58]} 23. Bxb3 {[%clk 0:01:55]} 23... Rh8 {[%clk 0:00:53]} 24.
Bc4 {[%clk 0:01:39.9]} 24... Rh6 {[%clk 0:00:36]} 25. g3 {[%clk 0:01:34.9]}
25... f3 {[%clk 0:00:24]} 26. Be3 {[%clk 0:01:33.3]} 26... Rh5 {[%clk
0:00:19.1]} 27. Rd2 {[%clk 0:01:28.2]} 27... Bh6 {[%clk 0:00:19.2]} 28. Bxh6
{[%clk 0:01:26.8]} 28... Rxh6 {[%clk 0:00:19.6]} 29. Qe3 {[%clk 0:01:27]} 29...
Kg6 {[%clk 0:00:20.2]} 30. Rbb2 {[%clk 0:01:16.3]} 30... Qd7 {[%clk 0:00:19.7]}
31. Bf1 {[%clk 0:01:13.7]} 31... Rah8 {[%clk 0:00:18.8]} 32. a4 {[%clk
0:01:10.6]} 32... Nh5 {[%clk 0:00:16.3]} 33. Nd1 {[%clk 0:01:00.8]} 33... Kg7
{[%clk 0:00:15.7]} 34. Kf2 {[%clk 0:00:55.5]} 34... Qe7 {[%clk 0:00:13.5]} 35.
Ke1 {[%clk 0:00:54.6]} 35... Nf6 {[%clk 0:00:13.8]} 36. Qg5+ {[%clk 0:00:53.2]}
36... Rg6 {[%clk 0:00:13.7]} 37. Qf5 {[%clk 0:00:53]} 37... Bc8 {[%clk
0:00:12.7]} 38. Qxg6+ {[%clk 0:00:43.4]} 38... Kxg6 {[%clk 0:00:12.6]} 39. Nbc3
{[%clk 0:00:43.7]} 39... Bd7 {[%clk 0:00:12.3]} 40. Rxb6 {[%clk 0:00:41.9]}
40... Nfxe4 {[%clk 0:00:12]} 41. Nxe4 {[%clk 0:00:41.5]} 41... Nxe4 {[%clk
0:00:12.3]} 42. Bd3 {[%clk 0:00:37.3]} 42... Bf5 {[%clk 0:00:12.7]} 43. Rc2
{[%clk 0:00:32.5]} 43... f2+ {[%clk 0:00:10.6]} 44. Nxf2 {[%clk 0:00:27.3]}
44... Nxf2 {[%clk 0:00:10.9]} 45. Bxf5+ {[%clk 0:00:26.7]} 45... Kxf5 {[%clk
0:00:11.8]} 46. Kxf2 {[%clk 0:00:26.8]} 46... Kg5 {[%clk 0:00:12.3]} 47. Kg1
{[%clk 0:00:25.9]} 47... Qa7 {[%clk 0:00:10.7]} 48. a5 {[%clk 0:00:22.4]} 48...
Qxa5 {[%clk 0:00:09.2]} 49. Rb1 {[%clk 0:00:19.4]} 49... Qxd5 {[%clk 0:00:09.2]}
50. Rf2 {[%clk 0:00:19]} 50... Qd4 {[%clk 0:00:09.1]} 51. Kg2 {[%clk 0:00:16.7]}
51... Rxh2+ {[%clk 0:00:09.2]} 52. Kxh2 {[%clk 0:00:14.3]} 52... Qxf2+ {[%clk
0:00:10.1]} 53. Kh1 {[%clk 0:00:14.7]} 53... Qf3+ {[%clk 0:00:10.8]} 54. Kh2
{[%clk 0:00:14.6]} 54... Qe2+ {[%clk 0:00:10.9]} 55. Kg1 {[%clk 0:00:13.7]}
55... Qe3+ {[%clk 0:00:11.2]} 56. Kh2 {[%clk 0:00:13.6]} 56... Qd2+ {[%clk
0:00:11.5]} 57. Kh1 {[%clk 0:00:13.4]} 57... Qd5+ {[%clk 0:00:11.4]} 58. Kh2
{[%clk 0:00:13.3]} 58... Qa2+ {[%clk 0:00:11.5]} 59. Kh1 {[%clk 0:00:13.4]}
59... Qxb1+ {[%clk 0:00:11.7]} 60. Kg2 {[%clk 0:00:14.1]} 60... Qe4+ {[%clk
0:00:11.7]} 61. Kg1 {[%clk 0:00:14.6]} 61... Qf3 {[%clk 0:00:10.5]} 62. Kh2
{[%clk 0:00:14.7]} 62... d5 {[%clk 0:00:10.9]} 63. Kg1 {[%clk 0:00:14.6]} 63...
Qxg3+ {[%clk 0:00:10.6]} 64. Kf1 {[%clk 0:00:14.5]} 64... Qf3+ {[%clk
0:00:10.9]} 65. Ke1 {[%clk 0:00:14.7]} 65... g3 {[%clk 0:00:11.1]} 66. Kd2
{[%clk 0:00:15.1]} 66... g2 {[%clk 0:00:11.2]} 67. Kc2 {[%clk 0:00:15.4]} 67...
g1=Q {[%clk 0:00:11]} 68. Kb2 {[%clk 0:00:14.6]} 68... Qgg2+ {[%clk 0:00:11.3]}
69. Kc1 {[%clk 0:00:14.2]} 69... Qff1# {[%clk 0:00:12.2]} 0-1

[Event "*** Titled Tuesday Blitz"]
[Site "Chess.com"]
[Date "2020.05.26"]
[Round "6"]
[White "iwanyu"]
[Black "Bigfish1995"]
[Result "1-0"]
[WhiteElo "2794"]
[BlackElo "3014"]
[TimeControl "180+1"]
[EndTime "11:09:11 PDT"]
[Termination "iwanyu won by checkmate"]

1. d4 {[%clk 0:03:00.9]} 1... f5 {[%clk 0:02:59.9]} 2. Nc3 {[%clk 0:02:57.7]}
2... d5 {[%clk 0:02:59.2]} 3. Bf4 {[%clk 0:02:57.4]} 3... c6 {[%clk 0:02:58.7]}
4. Nf3 {[%clk 0:02:55.7]} 4... Nf6 {[%clk 0:02:56.3]} 5. e3 {[%clk 0:02:55.7]}
5... g6 {[%clk 0:02:55.1]} 6. Bd3 {[%clk 0:02:54.1]} 6... Be6 {[%clk 0:02:54.1]}
7. O-O {[%clk 0:02:51.4]} 7... Nbd7 {[%clk 0:02:54.1]} 8. h3 {[%clk 0:02:47.3]}
8... Bg7 {[%clk 0:02:54]} 9. Ne2 {[%clk 0:02:45.8]} 9... O-O {[%clk 0:02:44.2]}
10. Ng5 {[%clk 0:02:43.3]} 10... Bf7 {[%clk 0:02:44]} 11. Nxf7 {[%clk
0:02:43.2]} 11... Rxf7 {[%clk 0:02:43.2]} 12. c4 {[%clk 0:02:43.8]} 12... e6
{[%clk 0:02:40.9]} 13. a3 {[%clk 0:02:42.2]} 13... Ne4 {[%clk 0:02:34.3]} 14.
Rc1 {[%clk 0:02:41.2]} 14... Qe7 {[%clk 0:02:28.5]} 15. Bh2 {[%clk 0:02:36.8]}
15... Nd6 {[%clk 0:02:24.1]} 16. b3 {[%clk 0:02:19.4]} 16... a5 {[%clk
0:02:21.1]} 17. Nc3 {[%clk 0:02:17.7]} 17... Ne4 {[%clk 0:02:20]} 18. Nb1 {[%clk
0:02:09.9]} 18... Qh4 {[%clk 0:02:13.2]} 19. b4 {[%clk 0:02:00.5]} 19... axb4
{[%clk 0:01:45.5]} 20. axb4 {[%clk 0:02:00.3]} 20... Nb6 {[%clk 0:01:36.7]} 21.
Qb3 {[%clk 0:01:47.2]} 21... g5 {[%clk 0:01:22.6]} 22. b5 {[%clk 0:01:28.4]}
22... dxc4 {[%clk 0:01:10]} 23. Bxc4 {[%clk 0:01:27.4]} 23... Nd5 {[%clk
0:01:08.2]} 24. bxc6 {[%clk 0:01:24.3]} 24... bxc6 {[%clk 0:01:09.1]} 25. Bd3
{[%clk 0:01:03.5]} 25... g4 {[%clk 0:00:56.1]} 26. Bxe4 {[%clk 0:00:40.9]} 26...
fxe4 {[%clk 0:00:55.5]} 27. Bg3 {[%clk 0:00:40.8]} 27... Qh5 {[%clk 0:00:50.6]}
28. hxg4 {[%clk 0:00:22.7]} 28... Qxg4 {[%clk 0:00:50.8]} 29. Rxc6 {[%clk
0:00:23.3]} 29... Bh6 {[%clk 0:00:51]} 30. Re1 {[%clk 0:00:20.6]} 30... Raf8
{[%clk 0:00:28.7]} 31. Nd2 {[%clk 0:00:19.6]} 31... Bg7 {[%clk 0:00:18.8]} 32.
Nf1 {[%clk 0:00:17.7]} 32... h5 {[%clk 0:00:18.7]} 33. Qd1 {[%clk 0:00:12.7]}
33... Qg5 {[%clk 0:00:18.6]} 34. Qc2 {[%clk 0:00:11.9]} 34... h4 {[%clk
0:00:18.7]} 35. Bd6 {[%clk 0:00:10.1]} 35... Rxf2 {[%clk 0:00:18.6]} 36. Qxf2
{[%clk 0:00:06.5]} 36... Rxf2 {[%clk 0:00:18.4]} 37. Kxf2 {[%clk 0:00:07.4]}
37... Bf6 {[%clk 0:00:14.8]} 38. Rc8+ {[%clk 0:00:06.5]} 38... Kg7 {[%clk
0:00:15]} 39. Rb1 {[%clk 0:00:06.9]} 39... Qf5+ {[%clk 0:00:13.6]} 40. Kg1
{[%clk 0:00:06.8]} 40... Kh6 {[%clk 0:00:10.8]} 41. Rb7 {[%clk 0:00:05.4]} 41...
Qg4 {[%clk 0:00:10]} 42. Bf8+ {[%clk 0:00:04.4]} 42... Kg6 {[%clk 0:00:09.5]}
43. Bd6 {[%clk 0:00:04.5]} 43... Qd1 {[%clk 0:00:09.2]} 44. Rg8+ {[%clk
0:00:04.1]} 44... Kf5 {[%clk 0:00:09.3]} 45. Kf2 {[%clk 0:00:02.7]} 45... Qc2+
{[%clk 0:00:08.4]} 46. Kg1 {[%clk 0:00:03]} 46... Qe2 {[%clk 0:00:08.1]} 47. g4+
{[%clk 0:00:03]} 47... Qxg4+ {[%clk 0:00:07.9]} 48. Rxg4 {[%clk 0:00:02.2]}
48... Kxg4 {[%clk 0:00:08.8]} 49. Be5 {[%clk 0:00:02.4]} 49... Bg5 {[%clk
0:00:08.8]} 50. Rb3 {[%clk 0:00:02.5]} 50... Kf5 {[%clk 0:00:08.7]} 51. Kf2
{[%clk 0:00:02.8]} 51... Bh6 {[%clk 0:00:08]} 52. Nh2 {[%clk 0:00:03.4]} 52...
Bg5 {[%clk 0:00:08.2]} 53. Nf1 {[%clk 0:00:04]} 53... Bh6 {[%clk 0:00:08.3]} 54.
Bh2 {[%clk 0:00:04.4]} 54... Kg4 {[%clk 0:00:08.1]} 55. Bg1 {[%clk 0:00:05.1]}
55... Bg5 {[%clk 0:00:06.5]} 56. Rb8 {[%clk 0:00:05.7]} 56... Nf6 {[%clk
0:00:06.2]} 57. Rb6 {[%clk 0:00:04.6]} 57... Kf5 {[%clk 0:00:06.1]} 58. Nh2
{[%clk 0:00:03.8]} 58... Nd5 {[%clk 0:00:06]} 59. Rb8 {[%clk 0:00:03.2]} 59...
Bxe3+ {[%clk 0:00:06.3]} 60. Kf1 {[%clk 0:00:03.2]} 60... Bf4 {[%clk 0:00:06.4]}
61. Rf8+ {[%clk 0:00:02.4]} 61... Kg5 {[%clk 0:00:07]} 62. Kg2 {[%clk
0:00:02.1]} 62... Bd6 {[%clk 0:00:06.4]} 63. Rg8+ {[%clk 0:00:01.6]} 63... Kf5
{[%clk 0:00:07]} 64. Ng4 {[%clk 0:00:02.3]} 64... Nf4+ {[%clk 0:00:07.3]} 65.
Kf1 {[%clk 0:00:02.5]} 65... Nd3 {[%clk 0:00:03.5]} 66. Be3 {[%clk 0:00:02.7]}
66... Be7 {[%clk 0:00:02.7]} 67. Nh6+ {[%clk 0:00:03]} 67... Kf6 {[%clk
0:00:03.3]} 68. Bg5# {[%clk 0:00:03.8]} 1-0